[Event "Navidad Barcelona IM2 2024"]
[Site "Barcelona"]
[Date "2024.12.28"]
[Round "5.5"]
[White "Serrahima Susany, Ramon"]
[Black "Martin Barcelo, Carles"]
[Result "0-1"]
[ECO "B12"]
[WhiteElo "2020"]
[BlackElo "2257"]
[Annotator "RC"]
[PlyCount "64"]
[EventDate "2024.12.26"]
[EventCountry "ESP"]
[SourceTitle "playchess.com"]
[Source "ChessBase"]
[SourceQuality "1"]
[TimeControl "5400+30"]

1. e4 {[%emt 0:02:15]} c6 {[%emt 0:03:49]} 2. d4 {[%emt 0:00:10]} d5 {[%emt 0:00:09]} 3. e5 {[%emt 0:00:08]} c5 {[%emt 0:00:59]} 4. Nf3 {[%emt 0:00:13]} cxd4 {[%emt 0:00:51]} 5. Qxd4 {[%emt 0:00:16]} Nc6 {[%emt 0:00:10]} 6. Qf4 {[%emt 0:00:07]} g6 {[%emt 0:00:31]} 7. Nc3 {[%emt 0:00:23]} d4 {[%emt 0:01:31]} 8. Ne4 {[%emt 0:00:51]} Bh6 {[%emt 0:01:26]} 9. Neg5 {[%emt 0:11:30]} f6 {[%emt 0:05:18]} 10. exf6 {[%emt 0:03:58]} exf6 {[%emt 0:00:10]} 11. Qe4+ {[%emt 0:03:38]} Kf8 {[%emt 0:10:54]} 12. Ne6+ {[%emt 0:15:02]} Bxe6 {[%emt 0:00:07]} 13. Bxh6+ {[%emt 0:00:21]} Nxh6 {[%emt 0:11:12]} 14. Qxe6 {[%emt 0:00:07]} Qa5+ {[%emt 0:02:42]} 15. Kd1 {[%emt 0:00:31]} Kg7 {[%emt 0:01:50]} 16. Qd7+ {[%emt 0:06:48]} Nf7 {[%emt 0:00:09]} 17. Bc4 {[%emt 0:00:48]} Rhf8 {[%emt 0:00:17]} 18. Qxb7 {[%emt 0:05:32]} Rac8 {[%emt 0:04:42]} 19. Re1 {[%emt 0:18:01]} Qc5 {[%emt 0:10:09]} 20. Qb5 {[%emt 0:02:01]} Qd6 {[%emt 0:01:37]} 21. Re6 {[%emt 0:02:50]} Qc7 {[%emt 0:02:25]} 22. b3 {[%emt 0:09:17]} Nfe5 {[%emt 0:18:06]} 23. Qc5 {[%emt 0:04:06]} Nxf3 {[%emt 0:03:10]} 24. gxf3 {[%emt 0:00:03]} Qf4 {[%emt 0:05:59]} 25. Bd5 {[%emt 0:02:50]} Ne5 {[%emt 0:06:19]} 26. Re7+ {[%emt 0:00:33]} Kh6 {[%emt 0:00:41]} 27. Qxa7 {[%emt 0:04:12]} Nxf3 {[%emt 0:07:22]} 28. Rxh7+ {[%emt 0:00:24]} Kg5 {[%emt 0:01:55]} 29. h4+ {[%emt 0:02:16]} Kg4 {[%emt 0:00:00]} 30. Qd7+ {[%emt 0:05:23]} f5 {[%emt 0:00:00]} 31. Bxf3+ {[%emt 0:00:12]} Qxf3+ {[%emt 0:00:00]} 32. Kc1 {[%emt 0:00:57]} Qc3 {[%emt 0:00:46]} 0-1